bitfinex/quotes_ETHUSD_20251212
["timestamp","ask_amount","ask_price","bid_price","bid_amount"]
[1765557862067,1.01947529,3059.7,3058.5,6.53915316]
[1765557862273,0.439,3059.6,3058.5,6.53915316]
[1765557864359,0.439,3059.6,3057.5,0.405504]
[1765557864360,0.11,3058.6,3057.4,0.4849]
[1765557864562,0.11,3058.6,3057.9,3.2701118]
[1765557864776,0.11,3058.6,3057.9,0.65404476]
[1765557864978,0.11,3058.6,3058.1,3.2699418]
[1765557865182,0.11,3058.9,3058.3,3.26978526]
[1765557865390,0.11,3058.9,3058.3,6.53957566]
[1765557866160,0.11,3058.9,3058.3,3.26978526]
[1765557866356,0.11,3058.9,3058.2,3.26985215]
[1765557866555,0.11,3058.9,3057.4,3.88]
[1765557866556,1.01947529,3058.8,3058.0,3.27003111]
[1765557866759,1.83985521,3058.8,3057.7,3.27040695]
[1765557866981,9.326799,3058.5,3057.3,0.1868]
[1765557867187,0.439,3058.7,3057.8,3.2702626]
[1765557867388,0.439,3058.6,3057.3,0.1868]
[1765557867586,0.439,3058.6,3057.8,3.27031076]
[1765557867759,0.439,3058.6,3056.8,3.46899492]
[1765557867760,0.11,3057.9,3056.8,3.46899492]
[1765557867956,0.405504,3057.8,3056.8,3.27139492]
[1765557868156,0.5581,3057.7,3056.3,0.1912]
[1765557868387,0.58047529,3057.5,3056.3,0.1912]
[1765557868705,0.58047529,3057.5,3056.4,6.5436461]
[1765557869003,0.439,3057.4,3056.5,0.67348461]
[1765557869364,0.11,3058.3,3057.3,0.1912]
[1765557869674,0.09161854,3059.7,3057.3,0.6649]
[1765557869675,0.975,3059.0,3057.3,0.6649]
[1765557869874,0.439,3059.0,3057.4,0.405504]
[1765557870093,0.536,3059.2,3057.5,0.4737]
[1765557870306,0.439,3059.4,3057.7,0.405504]
[1765557870501,0.439,3059.4,3057.8,13.55500028]
[1765557870793,0.536,3059.6,3057.9,1.97652572]
[1765557871009,0.536,3059.6,3058.1,0.58047529]
[1765557871307,1.01947529,3059.6,3058.2,0.6649]
[1765557871676,0.439,3059.5,3058.2,0.6649]
[1765557872087,0.975,3059.7,3058.3,0.4737]
[1765557872597,1.55547529,3059.7,3058.4,9.80905047]
[1765557872803,0.439,3059.7,3058.5,1.02827505]
[1765557872970,3.80429687,3059.7,3058.5,1.02827505]
[1765557873171,1.01947529,3059.6,3058.5,1.02827505]
[1765557873585,0.439,3059.6,3058.5,1.02827505]
[1765557873907,1.01947529,3059.6,3058.5,1.02827505]
[1765557874067,0.439,3059.6,3058.6,1.08373255]
[1765557874272,0.536,3059.7,3058.6,1.08373255]
[1765557874699,0.536,3059.7,3058.7,9.8080884]
[1765557874908,0.0999,3059.8,3058.7,9.8080884]
[1765557875129,0.0999,3059.8,3058.8,0.4737]
[1765557875288,0.0999,3059.8,3058.9,1.02817884]
[1765557875696,0.439,3059.7,3058.9,1.02817884]
[1765557875934,0.439,3059.7,3058.7,6.5387256]
[1765557876797,0.439,3059.7,3058.5,0.58047529]
[1765557877507,0.0999,3059.8,3058.6,0.4737]
[1765557877974,3.67288637,3060.6,3058.6,0.4737]
[1765557877975,13.658118,3060.9,3059.7,0.6424]
[1765557878176,0.439,3060.8,3059.1,0.405504]
[1765557878377,1.01947529,3060.8,3059.2,0.76923384]
[1765557878801,0.58047529,3060.6,3059.3,7.0111432]
[1765557879114,3.82504832,3061.0,3059.4,0.4737]
[1765557879422,0.58047529,3060.9,3059.4,0.4737]
[1765557879598,1.01947529,3060.9,3059.4,0.4737]
[1765557879828,0.439,3060.8,3059.5,1.02798648]
[1765557880638,0.439,3060.8,3059.6,0.4737]
[1765557881509,0.58047529,3060.6,3059.7,6.53658854]
[1765557882538,0.58047529,3060.7,3059.7,7.01028854]
[1765557882737,0.1191,3061.0,3059.8,1.05417529]
[1765557882940,0.1191,3061.0,3059.9,1.08590581]
[1765557883157,0.1191,3061.0,3059.9,1.55960581]
[1765557883472,0.536,3061.2,3060.1,9.80360118]
[1765557883652,3.80269942,3061.2,3060.1,6.53573412]
[1765557883941,7.06939884,3061.2,3060.2,0.1912]
[1765557884143,4.9596393,3061.2,3060.2,0.1912]
[1765557884350,0.975,3061.2,3060.2,0.1912]
[1765557884507,1.11647529,3061.2,3060.2,0.6649]
[1765557884714,3.80271711,3061.2,3060.2,0.1912]
[1765557884919,4.24171711,3061.2,3060.2,0.1912]
[1765557885149,0.536,3061.2,3060.2,0.6649]
[1765557885351,0.536,3061.2,3060.3,1.04685012]
[1765557885520,7.06938755,3061.2,3060.4,3.26754672]
[1765557885735,7.50838755,3061.2,3060.4,3.26754672]
[1765557885954,0.439,3061.1,3060.4,3.26754672]
[1765557886451,0.439,3061.1,3060.2,3.267697]
[1765557886452,0.229,3060.5,3060.2,3.267697]
[1765557886626,0.229,3060.5,3060.3,3.267612]
[1765557887062,0.229,3060.5,3060.2,3.26772476]
[1765557887275,0.229,3060.5,3060.3,3.26764801]
[1765557887482,0.229,3060.5,3059.7,0.1912]
[1765557887685,0.6647,3060.5,3059.8,3.26818746]
[1765557887979,0.6647,3060.5,3059.0,0.7272]
[1765557887980,0.0999,3059.8,3058.1,3.26998954]
[1765557888196,0.536,3060.2,3058.9,8.12533554]
[1765557888343,0.536,3060.2,3059.7,3.26827592]
[1765557888540,1.01947529,3060.4,3059.7,3.26827592]
[1765557888541,0.58047529,3060.8,3059.7,14.66190573]
[1765557888740,0.58047529,3060.8,3059.8,0.1912]
[1765557889396,0.1095,3059.9,3058.5,3.26951401]
[1765557889552,0.1095,3059.9,3059.1,0.4737]
[1765557889753,0.536,3060.3,3059.1,0.4737]
[1765557889952,0.58047529,3060.2,3059.1,0.4737]
[1765557890195,1.01947529,3060.9,3059.2,8.12533554]
[1765557890491,4.470105,3060.7,3059.3,0.03268721]
[1765557890782,0.58047529,3060.6,3059.1,0.4737]
[1765557891013,0.439,3060.6,3059.1,0.4737]
[1765557891272,0.439,3060.5,3059.1,0.4737]
[1765557891772,3.26754672,3060.4,3059.2,6.5376569]
[1765557891976,0.58047529,3060.4,3059.2,6.5376569]
[1765557892470,0.439,3060.3,3059.2,3.26882845]
[1765557892673,0.1095,3059.3,3058.9,3.26913126]
[1765557892872,0.1095,3059.3,3059.1,3.26892202]
[1765557893078,0.1095,3059.3,3059.0,3.26900166]
[1765557893293,0.5485,3059.3,3058.2,0.6516]
[1765557893590,0.5485,3059.3,3058.9,3.26908301]
[1765557893747,0.5485,3059.3,3058.4,3.26968349]
[1765557893748,0.1095,3059.3,3058.4,3.26968349]
[1765557893943,7.08598966,3059.3,3058.4,3.26968349]
[1765557894198,0.58047529,3059.2,3058.2,0.1912]
[1765557894410,0.58047529,3059.0,3057.5,3.73104047]
[1765557894686,0.58047529,3059.0,3057.4,0.64437469]
[1765557894687,0.536,3058.9,3057.6,0.4604]
[1765557895068,0.536,3058.9,3058.2,3.2697974]
[1765557895443,0.536,3058.9,3058.3,3.26969336]
[1765557895701,0.536,3058.9,3057.8,6.54061162]
[1765557895898,0.536,3058.9,3057.6,3.27051376]
[1765557895899,21.427241,3058.6,3057.6,3.27051376]
[1765557896048,0.81951144,3058.8,3057.7,3.27039744]
[1765557896049,1.39998673,3058.8,3057.7,3.27039744]
[1765557896252,1.39998673,3058.8,3057.4,0.002]
[1765557896253,0.439,3058.7,3057.4,0.002]
[1765557896470,0.439,3058.7,3057.5,3.27057748]
[1765557896749,0.439,3058.7,3057.6,3.27052393]
[1765557896946,1.6133456,3058.7,3057.4,0.002]
[1765557897146,0.58047529,3058.5,3057.4,0.002]
[1765557897377,0.439,3058.6,3057.4,0.002]
[1765557897678,0.439,3058.5,3057.4,0.002]
[1765557897876,6.97835556,3058.5,3057.4,3.27275292]
[1765557898079,6.97835556,3058.5,3057.4,0.002]
[1765557898080,0.2196,3057.5,3057.4,0.002]
[1765557898783,0.6553,3057.5,3057.4,0.002]
[1765557899276,0.2196,3057.5,3057.4,0.002]
[1765557899479,0.1097,3058.0,3057.4,0.002]
[1765557899680,0.6457,3058.0,3057.4,0.002]
[1765557899881,0.6457,3058.0,3057.6,3.27053898]
[1765557900054,0.6457,3058.0,3057.5,3.92498433]
[1765557900251,0.439,3057.6,3057.4,0.002]
[1765557900472,0.1097,3058.0,3057.4,0.002]
[1765557900784,0.1097,3058.0,3057.5,3.27059292]
[1765557901303,0.1097,3058.0,3057.4,0.002]
[1765557901304,0.1099,3057.6,3057.4,0.002]
[1765557901450,4.50366229,3057.5,3057.4,0.002]
[1765557901648,0.58157529,3057.5,3057.4,0.002]
[1765557901852,0.58157529,3057.5,3056.0,0.002]
[1765557901853,0.405504,3057.2,3056.0,0.002]
[1765557902048,0.108,3056.1,3056.0,0.002]
[1765557902313,0.644,3056.1,3056.0,0.002]
[1765557902480,0.536,3056.1,3056.0,0.002]
[1765557902682,0.644,3056.9,3056.0,0.4624]
[1765557902884,0.644,3056.9,3056.1,0.1946]
[1765557903080,1.01747529,3057.4,3056.1,0.1946]
[1765557903081,0.536,3057.2,3056.1,0.1946]
[1765557903258,0.536,3057.2,3056.2,0.03272037]
[1765557903466,0.536,3057.2,3056.1,0.655]
[1765557903667,0.58047529,3057.4,3056.2,0.4604]
[1765557903865,1.11647529,3057.3,3056.3,6.54386022]
[1765557904180,1.11647529,3057.3,3056.4,0.70042602]
[1765557904384,0.536,3057.3,3056.4,0.70042602]
[1765557905184,0.108,3056.5,3056.0,0.002]
[1765557905384,0.536,3056.4,3056.0,0.002]
[1765557905553,0.973,3056.4,3056.0,0.002]
[1765557905958,0.58047529,3056.2,3056.0,0.002]
[1765557906405,0.437,3056.1,3056.0,0.002]
[1765557907085,0.108,3056.5,3056.0,0.002]
[1765557907486,0.68847529,3056.5,3056.0,0.002]
[1765557907795,1.03831678,3056.5,3056.0,0.002]
[1765557907977,0.545,3056.5,3056.0,0.002]
[1765557908157,3.81671601,3056.5,3056.0,0.002]
[1765557908359,15.459319,3056.1,3056.0,0.002]
[1765557908591,15.17504429,3056.1,3056.0,0.002]
[1765557908799,0.405504,3055.5,3055.4,0.002]
[1765557909005,12.77224319,3055.5,3055.4,0.002]
[1765557909158,13.20724319,3055.5,3055.4,0.002]
[1765557909355,3.39462919,3055.5,3055.4,0.002]
[1765557909587,3.39462919,3055.5,3054.4,0.002]
[1765557909588,0.58047529,3054.6,3054.4,0.002]
[1765557909766,8.14514462,3054.5,3054.4,0.002]
[1765557909968,7.62649353,3054.5,3054.4,0.002]
[1765557910291,0.58047529,3054.5,3054.4,0.002]
[1765557910494,0.536,3055.0,3054.4,0.002]
[1765557910690,0.536,3055.1,3054.4,0.002]
[1765557911502,0.1097,3054.5,3054.4,0.002]
[1765557911674,0.58047529,3054.9,3054.4,0.002]
[1765557911885,0.1097,3054.8,3054.4,0.002]
[1765557912172,0.69017529,3054.8,3054.4,0.002]
[1765557912388,0.1097,3054.8,3054.4,0.002]
[1765557912812,0.536,3055.1,3054.4,0.002]
[1765557913015,0.536,3055.1,3054.4,0.4624]
[1765557913168,3.38113189,3055.8,3054.4,0.4624]
[1765557913365,0.536,3055.6,3054.4,0.4624]
[1765557913975,0.58047529,3055.7,3054.5,6.54771648]
[1765557914302,6.65359914,3055.8,3054.5,6.54771648]
[1765557914505,4.647058,3055.6,3054.5,6.54771648]
[1765557915376,0.435,3055.6,3054.5,3.27385824]
[1765557915591,0.435,3055.6,3054.4,3.27595315]
[1765557915592,0.58047529,3055.4,3054.4,0.002]
[1765557915795,1.68991593,3055.3,3054.4,0.002]
[1765557916008,0.435,3055.3,3054.4,0.002]
[1765557916207,0.58047529,3055.1,3054.4,0.002]
[1765557916390,3.67807656,3055.7,3054.4,0.002]
[1765557916577,1.11647529,3055.6,3054.4,0.4624]
[1765557916916,2.201573,3055.7,3054.4,0.4624]
[1765557917223,0.536,3055.5,3054.4,0.4624]
[1765557917507,0.58047529,3055.3,3054.4,0.002]
[1765557917894,10.665771,3055.4,3054.4,0.002]
[1765557918098,1.01547529,3055.3,3054.4,0.002]
[1765557918487,0.58047529,3055.0,3054.4,0.002]
[1765557918690,1.46393393,3054.9,3054.4,0.002]
[1765557918908,27.044093,3054.9,3054.4,0.002]
[1765557919209,0.1097,3054.8,3054.4,0.002]
[1765557919511,0.536,3054.7,3054.4,0.002]
[1765557920981,0.5436,3055.8,3054.5,0.4963]
[1765557921204,6.824893,3055.4,3054.5,0.4963]
[1765557921385,0.435,3055.6,3054.4,0.002]
[1765557921583,0.536,3055.5,3054.5,0.4963]
[1765557922042,8.82483238,3056.3,3054.5,0.4963]
[1765557922043,0.108,3056.5,3054.5,0.4963]
[1765557922311,2.246989,3056.3,3055.5,3.27278677]
[1765557922525,0.108,3056.5,3055.5,3.27278677]
[1765557922526,0.108,3056.5,3055.5,6.89124222]
[1765557922726,1.11647529,3056.4,3055.5,0.34566868]
[1765557923022,1.11647529,3056.4,3055.4,3.9530559]
[1765557923023,0.536,3056.4,3055.4,0.1839]
[1765557923210,0.536,3056.4,3055.5,0.4963]
[1765557924093,0.536,3056.9,3056.3,0.1839]
[1765557924296,3.8073545,3056.9,3056.3,0.1839]
[1765557924694,3.27076289,3057.4,3056.3,6.72775967]
[1765557925004,0.536,3057.3,3056.4,0.4963]
[1765557925204,0.58047529,3057.2,3056.4,0.4963]
[1765557925383,2.286017,3057.2,3055.9,0.4963]
[1765557925581,0.58047529,3057.0,3056.1,3.2721408]
[1765557925801,9.81225876,3057.4,3056.4,6.5436461]
[1765557925802,0.58047529,3057.4,3056.4,6.5436461]
[1765557926011,2.366328,3057.3,3056.4,3.92618766]
[1765557926230,0.58047529,3057.2,3056.5,3.45557005]
[1765557926711,0.58047529,3057.2,3056.5,0.1839]
[1765557927012,0.536,3057.4,3056.6,0.4963]
[1765557927190,0.58047529,3057.3,3056.6,0.4963]
[1765557927394,1.11647529,3057.4,3056.6,0.4963]
[1765557927591,0.536,3057.4,3056.6,1.21866196]
[1765557927791,3.402,3057.9,3056.6,1.21866196]
[1765557927995,0.58047529,3057.8,3056.7,0.4963]
[1765557928197,0.58047529,3057.7,3056.8,3.27139492]
[1765557928398,0.58047529,3057.7,3056.8,4.04754967]
[1765557928593,0.58047529,3057.7,3056.7,0.4963]
[1765557928926,0.58047529,3057.5,3056.3,0.1839]
[1765557929146,0.536,3057.4,3056.5,0.4963]
[1765557929301,0.536,3057.4,3056.3,0.1839]
[1765557929616,0.536,3057.4,3056.3,3.45573077]
[1765557929862,0.58047529,3057.2,3056.0,3.27223454]
[1765557930047,6.319536,3057.0,3056.0,3.27225019]
[1765557930192,17.894939,3056.7,3055.7,3.76884678]
[1765557930392,1.11647529,3056.6,3055.7,0.4963]
[1765557930621,1.11647529,3056.6,3055.4,0.1839]
[1765557930823,0.58047529,3056.2,3055.0,0.1839]
[1765557930998,0.536,3056.6,3055.0,0.1839]
[1765557930999,0.82701123,3057.1,3056.5,0.1839]
[1765557931323,0.536,3057.3,3056.0,0.1839]
[1765557931630,0.536,3057.2,3056.1,0.1839]
[1765557932014,0.435,3057.7,3056.2,0.4963]
[1765557932319,2.504,3057.6,3056.3,9.81579033]
[1765557932548,0.536,3057.6,3056.4,1.35840625]
[1765557932718,0.1097,3058.0,3056.4,1.85470625]
[1765557932719,0.536,3057.5,3056.4,1.85470625]
[1765557932914,0.536,3057.5,3056.5,0.4963]
[1765557933534,0.1097,3058.0,3056.5,0.4963]
[1765557934080,0.536,3057.9,3056.5,0.4963]
[1765557934219,0.58047529,3057.5,3056.2,6.54407434]
[1765557934423,1.66686913,3057.4,3056.2,7.28489177]
[1765557934746,0.58047529,3057.3,3056.2,11.05322894]
[1765557935043,0.435,3057.8,3056.3,0.4963]
[1765557935213,0.435,3057.7,3056.3,0.4963]
[1765557935412,0.58047529,3057.7,3056.3,0.4963]
[1765557935628,0.435,3057.7,3056.3,0.4963]
[1765557935851,0.435,3057.7,3056.4,0.99358449]
[1765557936029,0.435,3057.7,3056.3,0.4963]
[1765557936363,0.435,3057.7,3056.4,9.81546915]
[1765557936528,0.435,3057.7,3055.6,0.8315626]
[1765557936529,0.108,3056.5,3055.6,0.8315626]
[1765557936734,0.108,3056.5,3055.0,0.1839]
[1765557936735,0.536,3056.4,3055.2,0.4963]
[1765557937048,0.536,3056.4,3055.3,3.27295242]
[1765557937215,0.536,3056.4,3056.3,3.27193011]
[1765557937559,0.536,3056.8,3056.3,3.27193011]
[1765557937849,0.840504,3057.2,3056.4,0.4963]
[1765557937850,0.536,3057.2,3056.4,0.4963]
[1765557938418,0.536,3057.2,3056.1,0.1839]
[1765557938419,0.536,3057.2,3056.5,3.27171601]
[1765557938761,0.108,3056.2,3055.2,0.4963]
[1765557938918,0.108,3056.2,3055.3,6.54600202]
[1765557938919,0.644,3056.2,3055.3,6.54600202]
[1765557939474,0.644,3056.2,3055.3,9.81900303]
[1765557939619,0.536,3056.2,3055.4,0.4963]
[1765557940556,0.536,3056.2,3055.5,6.54557354]
[1765557940883,0.1097,3058.0,3056.1,0.1839]
[1765557941023,0.1097,3058.0,3056.2,0.4963]
[1765557941024,8.577487,3057.8,3056.2,0.4963]
[1765557941346,0.536,3057.9,3056.3,0.405504]
[1765557941657,0.1097,3058.0,3056.3,0.405504]
[1765557941658,0.001,3057.5,3056.3,0.405504]
[1765557941863,0.001,3057.5,3056.5,0.405504]
[1765557942256,0.001,3057.5,3056.6,0.4963]
[1765557942428,0.001,3057.5,3056.7,13.08600776]
[1765557942762,0.001,3057.5,3056.8,1.35823078]
[1765557942956,0.001,3057.5,3056.8,1.85453078]
[1765557943259,0.001,3057.5,3056.9,0.4963]
[1765557943463,0.001,3057.8,3057.2,0.405504]
[1765557943640,0.001,3057.8,3057.3,0.4963]
[1765557944459,0.001,3057.8,3057.4,6.54150584]
[1765557944663,0.001,3057.8,3057.5,1.0308569]
[1765557944864,0.001,3057.8,3057.5,1.5271569]
[1765557945164,0.001,3057.8,3056.3,0.4963]
[1765557945361,0.001,3057.8,3056.1,0.1839]
[1765557945362,0.58047529,3057.5,3056.5,3.27169587]
[1765557945525,0.58047529,3057.5,3056.2,0.4963]
[1765557945526,0.536,3057.7,3056.9,3.27119047]
[1765557945846,0.58047529,3057.6,3056.2,0.4963]
[1765557946045,0.972,3057.7,3056.9,3.27128738]
[1765557946261,0.972,3057.7,3056.2,0.4963]
[1765557946262,0.436,3057.7,3056.2,0.4963]
[1765557946457,0.436,3057.7,3056.3,6.54386022]
[1765557946458,0.58047529,3057.5,3056.3,6.54386022]
[1765557946673,0.42870143,3057.5,3056.3,10.86539857]
[1765557946831,4.28693817,3057.7,3056.3,10.86539857]
[1765557946832,4.28693817,3057.7,3056.4,0.4963]
[1765557947031,0.001,3057.8,3056.4,0.4963]
[1765557947564,0.972,3057.7,3056.4,0.4963]
[1765557947770,1.11647529,3057.7,3056.4,0.4963]
[1765557948057,0.536,3057.7,3056.4,0.4963]
[1765557948228,0.98585132,3057.7,3056.5,1.13616986]
[1765557948633,0.001,3057.8,3056.6,13.58273588]
[1765557949071,0.001,3057.8,3056.7,0.4963]
[1765557949426,0.001,3057.8,3056.8,0.405504]
[1765557949859,0.001,3057.8,3056.9,0.4963]
[1765557950760,0.001,3057.8,3057.0,6.54236178]
[1765557950942,0.39723551,3057.8,3057.0,6.54236178]
[1765557951138,0.9777108,3057.8,3056.9,3.27119519]
[1765557951372,0.9777108,3057.8,3056.9,3.27126972]
[1765557951662,0.436,3057.7,3056.9,3.27126972]
[1765557951961,0.58047529,3057.5,3056.9,3.27126972]
[1765557952161,0.535,3057.4,3056.9,3.27126972]
[1765557952355,0.535,3057.4,3056.9,6.54255762]
[1765557952854,0.001,3057.8,3057.0,0.487]
[1765557953778,0.001,3057.8,3057.1,0.405504]
[1765557954229,0.001,3057.8,3056.7,0.58047529]
[1765557954230,0.001,3057.8,3057.3,0.405504]
[1765557954562,0.001,3057.8,3057.2,0.487]
[1765557954766,0.001,3057.8,3057.3,9.8125797]
[1765557955070,0.001,3057.8,3057.4,1.51695797]
[1765557955566,0.001,3057.8,3057.5,0.487]
[1765557956763,0.001,3057.8,3057.7,3.27043202]
[1765557956963,0.001,3057.8,3057.7,3.75743202]
[1765557958673,0.001,3057.8,3057.7,3.27043202]
[1765557958964,0.001,3057.8,3057.2,0.487]
[1765557958965,0.001,3057.8,3057.4,0.58047529]
[1765557959264,0.001,3057.8,3057.3,9.8125797]
[1765557959265,0.001,3057.8,3057.3,6.5417198]
[1765557959465,0.001,3057.8,3057.4,0.487]
[1765557959847,0.001,3057.8,3057.3,6.5417198]
[1765557960055,0.001,3057.8,3057.3,10.2995797]
[1765557960256,0.001,3057.8,3057.4,0.487]
[1765557961082,0.001,3057.8,3057.5,6.5412919]
[1765557961232,0.001,3057.8,3057.0,0.487]
[1765557961438,0.001,3057.8,3055.6,3.366247]
[1765557961439,0.436,3057.7,3056.9,3.27125646]
[1765557961639,0.436,3057.7,3056.9,3.27127459]
[1765557961837,0.436,3057.7,3056.1,0.1839]
[1765557961838,0.436,3057.7,3056.1,3.45595765]
[1765557962046,0.58047529,3057.5,3056.3,3.27192844]
[1765557962244,0.58047529,3057.5,3056.2,0.88129577]
[1765557962492,0.001,3057.8,3056.3,0.487]
[1765557962668,0.001,3057.8,3057.3,3.2708227]
[1765557962857,0.001,3057.8,3056.8,3.27137166]
[1765557962858,0.437,3057.8,3056.8,3.27137166]
[1765557963163,1.01747529,3057.8,3056.8,6.54276658]
[1765557963334,0.001,3057.8,3056.8,7.02976658]
[1765557963534,0.001,3057.8,3056.8,8.05988932]
[1765557963777,0.001,3057.8,3056.8,14.11567916]
[1765557963960,0.001,3057.8,3056.9,0.487]
[1765557964143,0.001,3057.8,3057.0,0.4382158]
[1765557964454,0.001,3057.8,3057.0,0.65024493]
[1765557964654,0.001,3057.8,3057.1,1.06427602]
[1765557965039,0.001,3057.8,3057.3,0.98597929]
[1765557965545,0.001,3057.8,3057.4,0.487]
[1765557967060,0.001,3057.8,3057.6,3.27053898]
[1765557967255,0.001,3057.8,3057.7,0.487]
[1765557967436,0.001,3057.8,3057.7,1.23035904]
[1765557969059,0.001,3057.8,3057.7,4.50079106]
[1765557969373,0.001,3057.8,3057.7,8.38079106]
[1765557969541,0.001,3057.8,3057.7,7.63743202]
[1765557969741,0.001,3057.8,3057.1,0.17177202]
[1765557969946,0.001,3057.8,3057.5,3.27063678]
[1765557970160,0.001,3057.8,3057.4,3.27068711]
[1765557970360,0.436,3057.7,3056.3,0.487]
[1765557970574,0.436,3057.7,3056.3,3.75889258]
[1765557970744,0.436,3057.7,3056.4,0.37588926]
[1765557970944,0.436,3057.7,3056.4,0.86288926]
[1765557971191,0.001,3057.8,3056.5,13.49236804]
[1765557971346,0.001,3057.8,3056.7,0.405504]
[1765557971543,0.001,3057.8,3056.8,0.487]
[1765557971846,1.01647529,3057.7,3056.5,6.54343202]
[1765557972045,0.75582052,3057.6,3056.5,6.54343202]
[1765557972269,0.75582052,3057.6,3056.5,9.81514803]
[1765557972471,1.01647529,3057.5,3056.5,3.27171601]
[1765557972692,0.535,3057.4,3056.5,3.27171601]
[1765557972849,0.971,3057.4,3056.5,3.27171601]
[1765557973049,0.58047529,3057.2,3056.2,3.27203717]
[1765557973277,0.58047529,3057.2,3056.3,0.0327193]
[1765557973497,0.436,3057.1,3056.1,6.54424477]
[1765557973782,0.436,3057.1,3056.1,6.73614477]
[1765557974183,0.86473352,3057.1,3056.1,6.73614477]
[1765557974403,0.535,3057.4,3056.2,0.487]
[1765557975080,0.535,3057.4,3056.3,9.81579033]
[1765557975475,0.535,3057.4,3056.4,0.487]
[1765557975678,0.535,3057.4,3056.4,1.06747529]
[1765557976178,0.535,3057.4,3056.5,0.487]
[1765557977083,0.535,3057.4,3056.6,9.81482691]
[1765557977391,0.1083,3056.6,3056.1,0.1919]
[1765557977681,0.58047529,3057.3,3056.5,3.27171601]
[1765557977991,7.51251126,3057.4,3056.5,6.54343202]
[1765557977992,0.436,3057.2,3056.5,6.54343202]
[1765557978208,1.11547529,3057.4,3056.5,6.54343202]
[1765557978366,1.01909397,3057.3,3056.5,6.54343202]
[1765557978679,0.535,3057.4,3056.5,6.54343202]
[1765557979254,0.535,3057.4,3056.3,6.54386022]
[1765557979456,0.535,3057.4,3056.3,9.81579033]
[1765557980157,0.535,3057.4,3056.3,10.31069033]
[1765557980358,0.535,3057.4,3056.3,7.03876022]
[1765557980569,0.971,3057.4,3056.3,6.54386022]
[1765557980772,0.42416687,3057.3,3056.3,7.02816022]
[1765557981375,0.42416687,3057.3,3056.3,10.30009033]
[1765557981574,0.535,3057.4,3056.3,7.02816022]
[1765557981575,3.8057564,3057.4,3056.3,7.02816022]
[1765557981787,0.58047529,3057.3,3056.3,7.02816022]
[1765557982090,1.01647529,3057.3,3056.3,6.54386022]
[1765557982390,1.01647529,3057.3,3056.3,3.27193011]
[1765557982391,2.404,3057.2,3056.3,3.27193011]
[1765557982690,1.44209881,3057.2,3056.3,3.27193011]
[1765557982991,1.00609881,3057.2,3056.3,6.54386022]
[1765557983199,0.58047529,3057.3,3056.4,0.03271823]
[1765557983492,0.535,3057.4,3056.5,6.54343202]
[1765557983685,0.535,3057.4,3056.5,9.81514803]
[1765557983901,0.535,3057.4,3056.5,10.29944803]
[1765557984193,0.535,3057.5,3056.6,0.4843]
[1765557984365,0.535,3057.5,3056.5,6.54343202]
[1765557984560,0.535,3057.5,3056.5,10.29944803]
[1765557984890,0.971,3057.5,3056.5,6.54343202]
[1765557985257,0.535,3057.5,3056.5,3.27171601]
[1765557985494,0.58047529,3057.4,3056.5,1.46583621]
[1765557985803,3.80567612,3057.5,3056.6,0.4843]
[1765557985804,0.535,3057.5,3056.6,0.4843]
[1765557987567,0.535,3057.5,3056.7,9.81450582]
[1765557988077,0.535,3057.5,3056.7,10.29880582]
[1765557988281,0.535,3057.5,3056.8,1.02988058]
[1765557988880,0.5443,3056.9,3055.6,3.75891776]
[1765557989070,0.0011,3056.8,3055.7,0.4843]
[1765557989479,0.58047529,3057.4,3056.7,0.681]
[1765557989780,0.001,3057.8,3057.3,0.4968]
[1765557990196,0.001,3057.8,3057.3,0.4843]
[1765557991104,0.001,3057.8,3056.9,0.4843]
[1765557991469,0.001,3057.8,3057.0,6.54236178]
[1765557993114,0.001,3057.8,3057.7,0.4968]
[1765557993317,0.001,3057.8,3057.1,0.4843]
[1765557993475,0.001,3057.8,3057.2,6.54193378]
[1765557994015,0.001,3057.8,3057.2,9.81290067]
[1765557994403,0.001,3057.8,3057.2,10.29720067]
[1765557994795,0.001,3057.8,3057.2,7.02623378]
[1765557995300,0.001,3057.8,3057.2,10.29720067]
[1765557995707,0.001,3057.8,3057.3,1.06477529]
[1765557995924,0.001,3057.8,3057.7,0.4968]
[1765557996426,0.001,3057.8,3057.7,1.386604]
[1765557997284,0.001,3057.8,3057.3,0.58047529]
[1765557997481,0.001,3057.8,3057.5,6.5412919]
[1765557997919,0.001,3057.8,3057.5,7.0255919]
[1765557998132,0.69337529,3057.6,3056.8,3.27138685]
[1765557998277,0.1083,3056.9,3056.4,3.27182305]
[1765557998477,0.1083,3057.6,3056.4,13.0872922]
[1765557998682,0.1083,3057.6,3056.8,0.4968]
[1765557999505,0.001,3057.8,3056.9,10.2981637]
[1765558000073,0.001,3057.8,3056.9,9.8138637]
[1765558000321,0.001,3057.8,3057.0,0.4843]
[1765558001627,0.001,3057.8,3057.1,10.66595264]
[1765558001829,0.001,3057.8,3057.1,6.54214778]
[1765558002030,0.001,3057.8,3057.1,10.29752167]
[1765558002185,0.001,3057.8,3057.1,9.81322167]
[1765558003286,0.001,3057.8,3057.1,10.29752167]
[1765558004084,0.436,3057.2,3056.8,3.27133088]
[1765558004294,0.1083,3056.9,3056.4,3.27182305]
[1765558004503,0.1083,3057.3,3056.4,6.87082841]
[1765558004742,0.1083,3057.3,3056.4,6.5436461]
[1765558004890,0.436,3057.2,3056.4,6.5436461]
[1765558005312,0.436,3057.2,3056.4,3.27182305]
[1765558005717,0.1083,3057.3,3056.4,6.5436461]